[Event "Early-Titled-Tuesday-Blitz-February-13-2024"]
[Site "Chess.com"]
[Date "2024.02.13"]
[Round "9"]
[White "SHIVACalypso"]
[Black "amiqu"]
[Result "0-1"]
[WhiteElo "2478"]
[BlackElo "2099"]
[TimeControl "180+1"]
[EndTime "9:48:56 PST"]
[Termination "amiqu won by resignation"]

1. c4 {[%clk 0:02:56.1]} 1... e6 {[%clk 0:02:59.8]} 2. g3 {[%clk 0:02:55.7]}
2... d5 {[%clk 0:02:59.8]} 3. Bg2 {[%clk 0:02:56.1]} 3... dxc4 {[%clk
0:02:58.9]} 4. Qa4+ {[%clk 0:02:55.1]} 4... Nd7 {[%clk 0:02:58.1]} 5. Qxc4
{[%clk 0:02:54.4]} 5... a6 {[%clk 0:02:57.2]} 6. Nf3 {[%clk 0:02:49.2]} 6... b5
{[%clk 0:02:48.8]} 7. Qc2 {[%clk 0:02:49.6]} 7... Bb7 {[%clk 0:02:48.3]} 8. O-O
{[%clk 0:02:48.3]} 8... Ngf6 {[%clk 0:02:48.9]} 9. d3 {[%clk 0:02:47.5]} 9...
Be7 {[%clk 0:02:48.2]} 10. b3 {[%clk 0:02:48.1]} 10... O-O {[%clk 0:02:48.4]}
11. Bb2 {[%clk 0:02:48.3]} 11... c5 {[%clk 0:02:49.1]} 12. Nbd2 {[%clk
0:02:48.7]} 12... Rc8 {[%clk 0:02:49.4]} 13. Rac1 {[%clk 0:02:49.1]} 13... Qb6
{[%clk 0:02:47.4]} 14. Qb1 {[%clk 0:02:47.7]} 14... Rfd8 {[%clk 0:02:44.4]} 15.
Rfd1 {[%clk 0:02:47.2]} 15... h6 {[%clk 0:02:42.4]} 16. Qa1 {[%clk 0:02:47.2]}
16... a5 {[%clk 0:02:28.1]} 17. a4 {[%clk 0:02:37.6]} 17... bxa4 {[%clk
0:02:17.7]} 18. Qxa4 {[%clk 0:02:32.1]} 18... Bc6 {[%clk 0:02:12.5]} 19. Qa1
{[%clk 0:02:31.6]} 19... Ra8 {[%clk 0:02:06.5]} 20. d4 {[%clk 0:02:21.4]} 20...
cxd4 {[%clk 0:02:01]} 21. Rxc6 {[%clk 0:02:10.5]} 21... Qxc6 {[%clk 0:01:56.4]}
22. Nxd4 {[%clk 0:02:11]} 22... Qa6 {[%clk 0:01:26]} 23. Nc6 {[%clk 0:02:04.2]}
23... Bc5 {[%clk 0:01:05.5]} 24. Nxd8 {[%clk 0:02:00.3]} 24... Rxd8 {[%clk
0:01:06.4]} 25. Nc4 {[%clk 0:01:52.3]} 25... Rb8 {[%clk 0:01:00.1]} 26. Qxa5
{[%clk 0:01:46.1]} 26... Qxa5 {[%clk 0:00:33.1]} 27. Nxa5 {[%clk 0:01:47]} 27...
Rb5 {[%clk 0:00:33.2]} 28. Bc6 {[%clk 0:01:38.1]} 28... Rxa5 {[%clk 0:00:30.8]}
29. Bxd7 {[%clk 0:01:38]} 29... Nxd7 {[%clk 0:00:30]} 30. Rxd7 {[%clk
0:01:38.3]} 30... Ra2 {[%clk 0:00:29.9]} 31. Rd2 {[%clk 0:01:36.7]} 31... Bb4
{[%clk 0:00:26.2]} 32. Rc2 {[%clk 0:01:24.1]} 32... Kh7 {[%clk 0:00:26.2]} 33.
Rc4 {[%clk 0:01:16.5]} 33... Rxb2 {[%clk 0:00:17]} 34. Rxb4 {[%clk 0:01:16.7]}
34... Rxe2 {[%clk 0:00:17.7]} 35. Rb7 {[%clk 0:01:16.8]} 35... Rb2 {[%clk
0:00:14.8]} 36. b4 {[%clk 0:01:17.3]} 36... Kg6 {[%clk 0:00:15]} 37. b5 {[%clk
0:01:17]} 37... Kf6 {[%clk 0:00:15.1]} 38. b6 {[%clk 0:01:17.6]} 38... h5 {[%clk
0:00:14.2]} 39. Kf1 {[%clk 0:01:17.3]} 39... g6 {[%clk 0:00:13.2]} 40. Rb8
{[%clk 0:01:17.3]} 40... Kf5 {[%clk 0:00:12.1]} 41. Ke1 {[%clk 0:01:10.8]} 41...
Kg4 {[%clk 0:00:12.4]} 42. h4 {[%clk 0:01:10.3]} 42... Kf3 {[%clk 0:00:12.2]}
43. Rf8 {[%clk 0:01:09.8]} 43... Rb1+ {[%clk 0:00:07.2]} 44. Kd2 {[%clk
0:01:10.1]} 44... Rxb6 {[%clk 0:00:07.8]} 45. Rxf7+ {[%clk 0:01:10.4]} 45... Kg4
{[%clk 0:00:06.6]} 46. Rf4+ {[%clk 0:01:07.1]} 46... Kh3 {[%clk 0:00:06.2]} 47.
Rf6 {[%clk 0:01:06.4]} 47... Kg2 {[%clk 0:00:06]} 48. Ke3 {[%clk 0:01:06.3]}
48... Rb3+ {[%clk 0:00:04.1]} 49. Ke4 {[%clk 0:01:06.5]} 49... Rb2 {[%clk
0:00:03.5]} 50. Ke3 {[%clk 0:00:57]} 50... Rb3+ {[%clk 0:00:03.1]} 51. Ke4
{[%clk 0:00:57.7]} 51... Rb2 {[%clk 0:00:03.4]} 52. Rxe6 {[%clk 0:00:52.2]}
52... Re2+ {[%clk 0:00:02.5]} 53. Kd5 {[%clk 0:00:51.6]} 53... Rxe6 {[%clk
0:00:03.4]} 54. Kxe6 {[%clk 0:00:52.5]} 54... Kxf2 {[%clk 0:00:04.1]} 55. Kf6
{[%clk 0:00:53.2]} 55... Kxg3 {[%clk 0:00:04.8]} 56. Kg5 {[%clk 0:00:51]} 56...
Kh3 {[%clk 0:00:04.7]} 57. Kxg6 {[%clk 0:00:51.4]} 57... Kxh4 {[%clk 0:00:05.4]}
58. Kf5 {[%clk 0:00:49.9]} 58... Kg3 {[%clk 0:00:05.4]} 59. Ke4 {[%clk
0:00:50.4]} 59... h4 {[%clk 0:00:05.6]} 60. Ke3 {[%clk 0:00:50.6]} 60... h3
{[%clk 0:00:06]} 0-1

[Event "Early-Titled-Tuesday-Blitz-February-13-2024"]
[Site "Chess.com"]
[Date "2024.02.13"]
[Round "9"]
[White "VladimirKramnik"]
[Black "ChessSkool"]
[Result "1-0"]
[WhiteElo "2933"]
[BlackElo "2713"]
[TimeControl "180+1"]
[EndTime "9:48:57 PST"]
[Termination "VladimirKramnik won on time"]

1. e4 {[%clk 0:03:00.9]} 1... c6 {[%clk 0:02:58.5]} 2. d4 {[%clk 0:02:59.8]}
2... d5 {[%clk 0:02:59.4]} 3. e5 {[%clk 0:03:00.1]} 3... Bf5 {[%clk 0:02:58.4]}
4. h4 {[%clk 0:03:00.6]} 4... h5 {[%clk 0:02:56.8]} 5. Bd3 {[%clk 0:03:01.2]}
5... Bxd3 {[%clk 0:02:56.5]} 6. Qxd3 {[%clk 0:03:01.8]} 6... Qa5+ {[%clk
0:02:56.3]} 7. c3 {[%clk 0:03:01.4]} 7... Qa6 {[%clk 0:02:55.7]} 8. Qxa6 {[%clk
0:02:58.2]} 8... Nxa6 {[%clk 0:02:56.6]} 9. e6 {[%clk 0:02:57.1]} 9... fxe6
{[%clk 0:02:56.7]} 10. Nf3 {[%clk 0:02:54.9]} 10... Nh6 {[%clk 0:02:29.2]} 11.
Bf4 {[%clk 0:02:50.6]} 11... g6 {[%clk 0:02:20.5]} 12. Nbd2 {[%clk 0:02:42.7]}
12... Nf7 {[%clk 0:02:08.7]} 13. O-O-O {[%clk 0:02:35]} 13... Bh6 {[%clk
0:02:08.9]} 14. Bxh6 {[%clk 0:02:32.8]} 14... Rxh6 {[%clk 0:02:08.2]} 15. Rde1
{[%clk 0:02:30.5]} 15... Nc7 {[%clk 0:02:08.5]} 16. Nb3 {[%clk 0:02:24.8]} 16...
b6 {[%clk 0:02:08.1]} 17. Kc2 {[%clk 0:02:24.4]} 17... Kd7 {[%clk 0:01:55.9]}
18. Nc1 {[%clk 0:02:23.9]} 18... Rf8 {[%clk 0:01:56.6]} 19. Nd3 {[%clk
0:02:22.8]} 19... Nd8 {[%clk 0:01:33.9]} 20. Re2 {[%clk 0:02:18.7]} 20... Ne8
{[%clk 0:01:32.5]} 21. Ng5 {[%clk 0:02:10.7]} 21... Kd6 {[%clk 0:01:14.1]} 22.
Rhe1 {[%clk 0:02:05.6]} 22... Nc7 {[%clk 0:00:57.1]} 23. b4 {[%clk 0:01:50.3]}
23... Rf6 {[%clk 0:00:55.7]} 24. Kb3 {[%clk 0:01:43.9]} 24... Rh8 {[%clk
0:00:55.1]} 25. g3 {[%clk 0:01:42.8]} 25... Rhf8 {[%clk 0:00:54.9]} 26. a4
{[%clk 0:01:30.7]} 26... Nb7 {[%clk 0:00:50.4]} 27. Nh7 {[%clk 0:01:18.2]} 27...
c5 {[%clk 0:00:26.4]} 28. Ne5 {[%clk 0:01:04.7]} 28... c4+ {[%clk 0:00:18.2]}
29. Kc2 {[%clk 0:01:03]} 29... Rg8 {[%clk 0:00:15.8]} 30. f4 {[%clk 0:00:53]}
30... Nd8 {[%clk 0:00:14.6]} 31. b5 {[%clk 0:00:37.7]} 31... Rf5 {[%clk
0:00:11.5]} 32. Nf3 {[%clk 0:00:37]} 32... Nf7 {[%clk 0:00:09.7]} 33. Nhg5
{[%clk 0:00:32.9]} 33... Nxg5 {[%clk 0:00:09.9]} 34. hxg5 {[%clk 0:00:26.6]}
34... Rff8 {[%clk 0:00:09.7]} 35. Nh4 {[%clk 0:00:25.7]} 35... Ra8 {[%clk
0:00:09.1]} 36. Rb1 {[%clk 0:00:24]} 36... a6 {[%clk 0:00:09.2]} 37. bxa6 {[%clk
0:00:21.8]} 37... Rxa6 {[%clk 0:00:10.1]} 38. Rb2 {[%clk 0:00:22.2]} 38... Kc6
{[%clk 0:00:09.9]} 39. Rb4 {[%clk 0:00:21.7]} 39... Kd7 {[%clk 0:00:04.6]} 40.
Re1 {[%clk 0:00:21.6]} 40... Kc6 {[%clk 0:00:02.6]} 41. Reb1 {[%clk 0:00:21.3]}
41... Ne8 {[%clk 0:00:02]} 42. Nf3 {[%clk 0:00:20.1]} 42... Nc7 {[%clk
0:00:01.8]} 43. Ne5+ {[%clk 0:00:19.1]} 43... Kb7 {[%clk 0:00:01.6]} 44. Nd7
{[%clk 0:00:16.6]} 44... Rd8 {[%clk 0:00:02]} 45. Nc5+ {[%clk 0:00:12.1]} 45...
Ka7 {[%clk 0:00:01.3]} 46. Nxa6 {[%clk 0:00:12.6]} 46... Nxa6 {[%clk 0:00:01.2]}
47. Rxb6 {[%clk 0:00:13.2]} 1-0

[Event "Early-Titled-Tuesday-Blitz-February-13-2024"]
[Site "Chess.com"]
[Date "2024.02.13"]
[Round "9"]
[White "Dyadya81"]
[Black "platy3"]
[Result "0-1"]
[WhiteElo "2819"]
[BlackElo "2943"]
[TimeControl "180+1"]
[EndTime "9:48:58 PST"]
[Termination "platy3 won by resignation"]

1. e4 {[%clk 0:03:00.9]} 1... c5 {[%clk 0:02:57.4]} 2. b4 {[%clk 0:02:58.9]}
2... cxb4 {[%clk 0:02:52.6]} 3. Bb2 {[%clk 0:02:58.8]} 3... Nf6 {[%clk
0:02:50.3]} 4. e5 {[%clk 0:02:58.3]} 4... Nd5 {[%clk 0:02:50.4]} 5. c4 {[%clk
0:02:58]} 5... bxc3 {[%clk 0:02:47.5]} 6. Nxc3 {[%clk 0:02:57.7]} 6... Nxc3
{[%clk 0:02:46.7]} 7. Bxc3 {[%clk 0:02:57.4]} 7... d5 {[%clk 0:02:43.7]} 8. exd6
{[%clk 0:02:56.1]} 8... Qxd6 {[%clk 0:02:43.7]} 9. Bc4 {[%clk 0:02:55.5]} 9...
Be6 {[%clk 0:02:39]} 10. Qe2 {[%clk 0:02:55.1]} 10... Bxc4 {[%clk 0:02:23.4]}
11. Qxc4 {[%clk 0:02:55.6]} 11... Nc6 {[%clk 0:02:23.7]} 12. Nf3 {[%clk
0:02:54.2]} 12... e6 {[%clk 0:02:21.1]} 13. O-O {[%clk 0:02:52.2]} 13... Rc8
{[%clk 0:02:15.5]} 14. Rfe1 {[%clk 0:02:44.7]} 14... Qd7 {[%clk 0:02:00.1]} 15.
Qg4 {[%clk 0:02:33.3]} 15... h5 {[%clk 0:01:50.8]} 16. Qg3 {[%clk 0:02:31.2]}
16... Rh6 {[%clk 0:01:49.7]} 17. Nh4 {[%clk 0:02:23.7]} 17... Qd6 {[%clk
0:01:24.8]} 18. Qxd6 {[%clk 0:02:17.2]} 18... Bxd6 {[%clk 0:01:24.9]} 19. Nf5
{[%clk 0:02:16.5]} 19... Bf4 {[%clk 0:01:20.7]} 20. Nxh6 {[%clk 0:02:07.7]}
20... Bxh6 {[%clk 0:01:20.6]} 21. Rab1 {[%clk 0:02:06.2]} 21... Rc7 {[%clk
0:01:20.2]} 22. Rb5 {[%clk 0:02:05.8]} 22... g6 {[%clk 0:01:19.3]} 23. Bf6
{[%clk 0:02:01]} 23... Bxd2 {[%clk 0:01:02.9]} 24. Reb1 {[%clk 0:01:58.6]} 24...
b6 {[%clk 0:00:59.6]} 25. Rd1 {[%clk 0:01:57.8]} 25... Bh6 {[%clk 0:00:58.8]}
26. Rb3 {[%clk 0:01:54.7]} 26... Ne7 {[%clk 0:00:55.8]} 27. Rc3 {[%clk
0:01:36.1]} 27... Rxc3 {[%clk 0:00:53.6]} 28. Bxc3 {[%clk 0:01:37]} 28... Nd5
{[%clk 0:00:54.1]} 29. Bd2 {[%clk 0:01:36.3]} 29... Bf8 {[%clk 0:00:52.7]} 30.
Kf1 {[%clk 0:01:36]} 30... Bc5 {[%clk 0:00:52.6]} 31. Ke2 {[%clk 0:01:35.6]}
31... Ke7 {[%clk 0:00:52.3]} 32. Rc1 {[%clk 0:01:34.7]} 32... Kd6 {[%clk
0:00:51.6]} 33. h3 {[%clk 0:01:34.1]} 33... b5 {[%clk 0:00:36.5]} 34. f3 {[%clk
0:01:33.1]} 34... a6 {[%clk 0:00:35.1]} 35. g4 {[%clk 0:01:32.5]} 35... hxg4
{[%clk 0:00:31.9]} 36. fxg4 {[%clk 0:01:33.4]} 36... f5 {[%clk 0:00:27.9]} 37.
g5 {[%clk 0:01:31.5]} 37... e5 {[%clk 0:00:26.4]} 38. h4 {[%clk 0:01:31.4]}
38... e4 {[%clk 0:00:23.5]} 39. h5 {[%clk 0:01:30]} 39... gxh5 {[%clk
0:00:23.4]} 40. g6 {[%clk 0:01:27.5]} 40... f4 {[%clk 0:00:16.5]} 41. g7 {[%clk
0:01:23]} 41... f3+ {[%clk 0:00:16.6]} 42. Kf1 {[%clk 0:01:21.6]} 42... Nf6
{[%clk 0:00:13]} 43. Bf4+ {[%clk 0:01:20.2]} 43... Kd5 {[%clk 0:00:11]} 44. Bg5
{[%clk 0:01:11.3]} 44... Ng8 {[%clk 0:00:10.7]} 45. Rd1+ {[%clk 0:01:11.7]}
45... Ke6 {[%clk 0:00:10.1]} 46. Rc1 {[%clk 0:00:58.2]} 46... Bd4 {[%clk
0:00:08.9]} 47. Rc6+ {[%clk 0:00:54.7]} 47... Kf5 {[%clk 0:00:08.2]} 48. Rc8
{[%clk 0:00:51.8]} 48... Kxg5 {[%clk 0:00:06.2]} 49. Rxg8 {[%clk 0:00:51.8]}
49... e3 {[%clk 0:00:06.6]} 50. Re8 {[%clk 0:00:46.2]} 50... e2+ {[%clk
0:00:07.1]} 51. Ke1 {[%clk 0:00:44.4]} 51... Bxg7 {[%clk 0:00:07.6]} 52. Kf2
{[%clk 0:00:40.1]} 52... Bc3 {[%clk 0:00:07.2]} 53. Kxf3 {[%clk 0:00:36.4]}
53... e1=Q {[%clk 0:00:06.8]} 54. Rxe1 {[%clk 0:00:36.8]} 54... Bxe1 {[%clk
0:00:07.7]} 55. a4 {[%clk 0:00:37.4]} 55... bxa4 {[%clk 0:00:07.9]} 56. Kg2
{[%clk 0:00:37.8]} 56... Bc3 {[%clk 0:00:08.2]} 0-1

[Event "Early-Titled-Tuesday-Blitz-February-13-2024"]
[Site "Chess.com"]
[Date "2024.02.13"]
[Round "9"]
[White "AttackSparrow"]
[Black "GelmanAlexander"]
[Result "1-0"]
[WhiteElo "2633"]
[BlackElo "2756"]
[TimeControl "180+1"]
[EndTime "9:48:59 PST"]
[Termination "AttackSparrow won on time"]

1. Nf3 {[%clk 0:03:00.9]} 1... c5 {[%clk 0:02:57.6]} 2. e3 {[%clk 0:03:01.1]}
2... d6 {[%clk 0:02:57.5]} 3. d4 {[%clk 0:03:02]} 3... Nd7 {[%clk 0:02:57.8]} 4.
c4 {[%clk 0:02:53.2]} 4... Ngf6 {[%clk 0:02:57.9]} 5. Nc3 {[%clk 0:02:53.3]}
5... a6 {[%clk 0:02:56.8]} 6. Be2 {[%clk 0:02:43.1]} 6... e6 {[%clk 0:02:56.5]}
7. O-O {[%clk 0:02:42.8]} 7... b6 {[%clk 0:02:55.2]} 8. b3 {[%clk 0:02:42]} 8...
Bb7 {[%clk 0:02:55.2]} 9. Bb2 {[%clk 0:02:42.8]} 9... Rg8 {[%clk 0:02:54.4]} 10.
d5 {[%clk 0:02:40.3]} 10... g5 {[%clk 0:02:54.4]} 11. e4 {[%clk 0:02:36.3]}
11... g4 {[%clk 0:02:54.1]} 12. Ne1 {[%clk 0:02:34]} 12... Qe7 {[%clk
0:02:51.2]} 13. Nd3 {[%clk 0:02:30.6]} 13... h5 {[%clk 0:02:50.6]} 14. a3 {[%clk
0:02:26.6]} 14... h4 {[%clk 0:02:49.5]} 15. b4 {[%clk 0:02:23]} 15... Bh6 {[%clk
0:02:44.5]} 16. bxc5 {[%clk 0:02:15.8]} 16... dxc5 {[%clk 0:02:40.2]} 17. e5
{[%clk 0:02:08.8]} 17... Nh5 {[%clk 0:02:39.7]} 18. Ne4 {[%clk 0:01:59.8]} 18...
Kf8 {[%clk 0:02:15.5]} 19. Bc1 {[%clk 0:01:45.8]} 19... Bxc1 {[%clk 0:02:10.5]}
20. Qxc1 {[%clk 0:01:46.7]} 20... Rg6 {[%clk 0:02:06.5]} 21. Nd6 {[%clk
0:01:37.2]} 21... Rb8 {[%clk 0:01:57.8]} 22. Nxb7 {[%clk 0:00:50]} 22... Rxb7
{[%clk 0:01:57.5]} 23. h3 {[%clk 0:00:50.5]} 23... exd5 {[%clk 0:01:01.7]} 24.
Bxg4 {[%clk 0:00:46.8]} 24... Nxe5 {[%clk 0:00:54.9]} 25. Nxe5 {[%clk
0:00:40.6]} 25... Qxe5 {[%clk 0:00:54.6]} 26. Re1 {[%clk 0:00:36.9]} 26... Qg5
{[%clk 0:00:52.5]} 27. Qb2 {[%clk 0:00:27.3]} 27... Nf6 {[%clk 0:00:46.1]} 28.
Bf3 {[%clk 0:00:27.7]} 28... Rd7 {[%clk 0:00:43.8]} 29. Qxb6 {[%clk 0:00:24.8]}
29... dxc4 {[%clk 0:00:35.6]} 30. Qb8+ {[%clk 0:00:20.3]} 30... Kg7 {[%clk
0:00:35.5]} 31. Qe5 {[%clk 0:00:16.5]} 31... c3 {[%clk 0:00:28.7]} 32. Rac1
{[%clk 0:00:15.1]} 32... Rd3 {[%clk 0:00:25]} 33. Qxg5 {[%clk 0:00:10.3]} 33...
Rxg5 {[%clk 0:00:25.9]} 34. Be2 {[%clk 0:00:10.1]} 34... Rxh3 {[%clk 0:00:20.3]}
35. Bxa6 {[%clk 0:00:08.4]} 35... c2 {[%clk 0:00:18.7]} 36. Rxc2 {[%clk
0:00:07.9]} 36... Rxa3 {[%clk 0:00:19.3]} 37. Bf1 {[%clk 0:00:07]} 37... Ra7
{[%clk 0:00:15.2]} 38. Rec1 {[%clk 0:00:06.2]} 38... Rc7 {[%clk 0:00:15.4]} 39.
Be2 {[%clk 0:00:06.5]} 39... Nd7 {[%clk 0:00:12.7]} 40. Bb5 {[%clk 0:00:05.7]}
40... Nf8 {[%clk 0:00:11.3]} 41. Kh2 {[%clk 0:00:04.1]} 41... Ne6 {[%clk
0:00:11.6]} 42. Bc4 {[%clk 0:00:03.3]} 42... Nf4 {[%clk 0:00:10.9]} 43. Bf1
{[%clk 0:00:02.6]} 43... Kf6 {[%clk 0:00:10.2]} 44. Rc4 {[%clk 0:00:02.8]} 44...
Ke5 {[%clk 0:00:09.8]} 45. Re1+ {[%clk 0:00:03]} 45... Kf5 {[%clk 0:00:09.4]}
46. Rec1 {[%clk 0:00:03.7]} 46... Ne6 {[%clk 0:00:09.1]} 47. Re1 {[%clk
0:00:03.7]} 47... Rg4 {[%clk 0:00:07.6]} 48. Bd3+ {[%clk 0:00:03.9]} 48... Kg5
{[%clk 0:00:08]} 49. Re5+ {[%clk 0:00:04.3]} 49... f5 {[%clk 0:00:07.5]} 50.
Rxf5+ {[%clk 0:00:04.6]} 50... Kh6 {[%clk 0:00:08.1]} 51. Rxg4 {[%clk
0:00:05.2]} 1-0

[Event "Early-Titled-Tuesday-Blitz-February-13-2024"]
[Site "Chess.com"]
[Date "2024.02.13"]
[Round "9"]
[White "kikoveiga"]
[Black "regenda"]
[Result "1-0"]
[WhiteElo "2529"]
[BlackElo "2143"]
[TimeControl "180+1"]
[EndTime "9:49:00 PST"]
[Termination "kikoveiga won by resignation"]

1. c4 {[%clk 0:03:00.9]} 1... Nf6 {[%clk 0:02:55.7]} 2. Nc3 {[%clk 0:02:56.8]}
2... g6 {[%clk 0:02:55.7]} 3. e4 {[%clk 0:02:52.3]} 3... d6 {[%clk 0:02:56]} 4.
g3 {[%clk 0:02:52.7]} 4... Bg7 {[%clk 0:02:56.6]} 5. Bg2 {[%clk 0:02:53.2]} 5...
O-O {[%clk 0:02:57.2]} 6. Nge2 {[%clk 0:02:53.8]} 6... c6 {[%clk 0:02:57.5]} 7.
O-O {[%clk 0:02:54.1]} 7... Qa5 {[%clk 0:02:58.1]} 8. d4 {[%clk 0:02:53]} 8...
Qh5 {[%clk 0:02:58]} 9. Nf4 {[%clk 0:02:51.6]} 9... Qxd1 {[%clk 0:02:57.6]} 10.
Rxd1 {[%clk 0:02:52.5]} 10... e5 {[%clk 0:02:58.1]} 11. dxe5 {[%clk 0:02:50.2]}
11... dxe5 {[%clk 0:02:59]} 12. Nd3 {[%clk 0:02:50.5]} 12... Nfd7 {[%clk
0:02:57.5]} 13. c5 {[%clk 0:02:46.1]} 13... a5 {[%clk 0:02:56.8]} 14. Be3 {[%clk
0:02:39.9]} 14... Na6 {[%clk 0:02:55.7]} 15. a3 {[%clk 0:02:36.2]} 15... Nc7
{[%clk 0:02:52.7]} 16. b4 {[%clk 0:02:16]} 16... Ne6 {[%clk 0:02:52.7]} 17. Ne2
{[%clk 0:01:56.2]} 17... Rd8 {[%clk 0:02:40.8]} 18. Nb2 {[%clk 0:01:54.9]} 18...
Nd4 {[%clk 0:02:32.8]} 19. Nxd4 {[%clk 0:01:52.4]} 19... exd4 {[%clk 0:02:28.2]}
20. Bg5 {[%clk 0:01:41.8]} 20... f6 {[%clk 0:02:03.5]} 21. Bf4 {[%clk 0:01:39]}
21... Ne5 {[%clk 0:02:03.8]} 22. Bxe5 {[%clk 0:01:20.1]} 22... fxe5 {[%clk
0:02:04.7]} 23. Nc4 {[%clk 0:01:20.5]} 23... Be6 {[%clk 0:02:05]} 24. Nxa5
{[%clk 0:01:19.6]} 24... Rd7 {[%clk 0:01:50.3]} 25. Bf1 {[%clk 0:01:18.3]} 25...
Kf7 {[%clk 0:01:26.4]} 26. Bc4 {[%clk 0:01:14.2]} 26... Bf8 {[%clk 0:01:21]} 27.
Bxe6+ {[%clk 0:01:04.6]} 27... Kxe6 {[%clk 0:01:21.9]} 28. Nc4 {[%clk
0:01:04.9]} 28... Rdd8 {[%clk 0:01:19.3]} 29. Rd3 {[%clk 0:01:03.6]} 29... Be7
{[%clk 0:01:13]} 30. f4 {[%clk 0:01:02.9]} 30... Bf6 {[%clk 0:01:11.9]} 31. a4
{[%clk 0:00:48]} 31... Bg7 {[%clk 0:01:01.1]} 32. a5 {[%clk 0:00:37.9]} 32...
Rf8 {[%clk 0:01:01.1]} 33. Rf1 {[%clk 0:00:35.9]} 33... Rf7 {[%clk 0:00:55.2]}
34. Nd6 {[%clk 0:00:33]} 34... Rd7 {[%clk 0:00:50.2]} 35. fxe5 {[%clk
0:00:33.2]} 35... Bxe5 {[%clk 0:00:47.2]} 36. Nc4 {[%clk 0:00:33.2]} 36... Re8
{[%clk 0:00:37.4]} 37. Kg2 {[%clk 0:00:26.8]} 37... Bg7 {[%clk 0:00:16.9]} 38.
Ra1 {[%clk 0:00:26.6]} 38... Rf7 {[%clk 0:00:16.2]} 39. a6 {[%clk 0:00:26.1]}
39... bxa6 {[%clk 0:00:15.9]} 40. Rxa6 {[%clk 0:00:27]} 40... Ref8 {[%clk
0:00:15.4]} 41. Rxc6+ {[%clk 0:00:26.9]} 41... Kd7 {[%clk 0:00:16]} 42. Rd6+
{[%clk 0:00:25.9]} 42... Kc7 {[%clk 0:00:16.7]} 43. e5 {[%clk 0:00:22.2]} 43...
Rf2+ {[%clk 0:00:16.6]} 44. Kh3 {[%clk 0:00:22.5]} 44... R2f3 {[%clk 0:00:16.4]}
45. Rxf3 {[%clk 0:00:22.3]} 45... Rxf3 {[%clk 0:00:16.9]} 46. Rxd4 {[%clk
0:00:22.9]} 46... Rb3 {[%clk 0:00:16.5]} 47. Nd6 {[%clk 0:00:17.2]} 47... Bxe5
{[%clk 0:00:16.6]} 48. Nb5+ {[%clk 0:00:14.2]} 48... Kc6 {[%clk 0:00:09.6]} 49.
Na7+ {[%clk 0:00:11.3]} 49... Kb7 {[%clk 0:00:06.7]} 50. Rd7+ {[%clk 0:00:11.1]}
50... Ka6 {[%clk 0:00:07.2]} 51. Nc6 {[%clk 0:00:10.4]} 51... Bf6 {[%clk
0:00:01.7]} 52. Rf7 {[%clk 0:00:10.1]} 52... Kb5 {[%clk 0:00:02.3]} 53. Rxf6
{[%clk 0:00:10.2]} 1-0

[Event "Early-Titled-Tuesday-Blitz-February-13-2024"]
[Site "Chess.com"]
[Date "2024.02.13"]
[Round "9"]
[White "bazar-wokzal"]
[Black "soloderisas"]
[Result "0-1"]
[WhiteElo "2658"]
[BlackElo "2541"]
[TimeControl "180+1"]
[EndTime "9:49:03 PST"]
[Termination "soloderisas won by checkmate"]

1. e4 {[%clk 0:03:00.9]} 1... e5 {[%clk 0:03:00.2]} 2. Bc4 {[%clk 0:02:56.2]}
2... Nc6 {[%clk 0:02:59.1]} 3. f4 {[%clk 0:02:51.2]} 3... exf4 {[%clk
0:02:56.4]} 4. d4 {[%clk 0:02:50.9]} 4... g5 {[%clk 0:02:55.5]} 5. h4 {[%clk
0:02:50.4]} 5... Bg7 {[%clk 0:02:49.2]} 6. c3 {[%clk 0:02:50.2]} 6... h6 {[%clk
0:02:46.6]} 7. hxg5 {[%clk 0:02:50.3]} 7... Qxg5 {[%clk 0:02:44.6]} 8. Nf3
{[%clk 0:02:44.5]} 8... Qg3+ {[%clk 0:02:41.8]} 9. Kf1 {[%clk 0:02:43.9]} 9...
d6 {[%clk 0:02:35.6]} 10. Bd2 {[%clk 0:02:17.9]} 10... Nf6 {[%clk 0:02:25.6]}
11. Qe2 {[%clk 0:02:03.9]} 11... O-O {[%clk 0:01:47.1]} 12. Rh4 {[%clk
0:01:58.1]} 12... Ng4 {[%clk 0:01:36]} 13. Be1 {[%clk 0:01:49.3]} 13... Ne3+
{[%clk 0:01:31.4]} 14. Kg1 {[%clk 0:01:45.4]} 14... Qg6 {[%clk 0:01:22.4]} 15.
Rxf4 {[%clk 0:01:36.3]} 15... Nxc4 {[%clk 0:01:17.5]} 16. Qxc4 {[%clk
0:01:35.8]} 16... Re8 {[%clk 0:01:12.1]} 17. Nbd2 {[%clk 0:01:33.4]} 17... Re7
{[%clk 0:00:56.8]} 18. Bh4 {[%clk 0:01:31.4]} 18... Re8 {[%clk 0:00:36.5]} 19.
Rf1 {[%clk 0:01:30.4]} 19... Bd7 {[%clk 0:00:31.5]} 20. Nh2 {[%clk 0:01:21.2]}
20... Be6 {[%clk 0:00:28.8]} 21. Qb5 {[%clk 0:01:16.5]} 21... Rf8 {[%clk
0:00:16]} 22. d5 {[%clk 0:01:09.3]} 22... Bh3 {[%clk 0:00:12.4]} 23. R1f2 {[%clk
0:00:55]} 23... Ne5 {[%clk 0:00:12.9]} 24. Bf6 {[%clk 0:00:44.2]} 24... h5
{[%clk 0:00:09.8]} 25. Bxg7 {[%clk 0:00:35.1]} 25... Qxg7 {[%clk 0:00:10.2]} 26.
Ndf3 {[%clk 0:00:35.4]} 26... Ng6 {[%clk 0:00:08.7]} 27. Rf5 {[%clk 0:00:18.8]}
27... Bxf5 {[%clk 0:00:09.3]} 28. exf5 {[%clk 0:00:19.3]} 28... Ne7 {[%clk
0:00:08.3]} 29. Nd4 {[%clk 0:00:17.8]} 29... Qf6 {[%clk 0:00:06.9]} 30. Qe2
{[%clk 0:00:15.7]} 30... Kh7 {[%clk 0:00:04.7]} 31. Qxh5+ {[%clk 0:00:15]} 31...
Qh6 {[%clk 0:00:04]} 32. Qf3 {[%clk 0:00:14.2]} 32... Ng8 {[%clk 0:00:04.4]} 33.
Ng4 {[%clk 0:00:13.7]} 33... Qc1+ {[%clk 0:00:04.6]} 34. Rf1 {[%clk 0:00:12.7]}
34... Qg5 {[%clk 0:00:05.2]} 35. f6 {[%clk 0:00:10.8]} 35... Nh6 {[%clk
0:00:04.4]} 36. Nxh6 {[%clk 0:00:09.9]} 36... Qxh6 {[%clk 0:00:04.6]} 37. Kf2
{[%clk 0:00:09.6]} 37... Rae8 {[%clk 0:00:02.3]} 38. g4 {[%clk 0:00:07]} 38...
Qd2+ {[%clk 0:00:02.7]} 39. Kg3 {[%clk 0:00:06.4]} 39... Re3 {[%clk 0:00:02.8]}
40. Rh1+ {[%clk 0:00:05.3]} 40... Kg6 {[%clk 0:00:03]} 41. Rh5 {[%clk
0:00:04.6]} 41... Rxf3+ {[%clk 0:00:03.3]} 42. Nxf3 {[%clk 0:00:05]} 42... Qe3
{[%clk 0:00:03.7]} 43. Rf5 {[%clk 0:00:04.8]} 43... Re8 {[%clk 0:00:03.6]} 44.
Kg2 {[%clk 0:00:04.9]} 44... Re4 {[%clk 0:00:03.4]} 45. Nh4+ {[%clk 0:00:04.7]}
45... Kh7 {[%clk 0:00:03.7]} 46. Rf3 {[%clk 0:00:04.7]} 46... Qe2+ {[%clk
0:00:03.6]} 47. Kg3 {[%clk 0:00:05]} 47... Qe1+ {[%clk 0:00:03.8]} 48. Kg2
{[%clk 0:00:04.8]} 48... Rxg4+ {[%clk 0:00:03.9]} 49. Kh3 {[%clk 0:00:04.6]}
49... Qxh4# {[%clk 0:00:04.4]} 0-1